fUSD/lending_fUSD_20241223
["ID","MTS","AMOUNT","RATE_DAILY","PERIOD"]
[346380832,1734928238351,-515.57294707,0.00019,2]
[346380833,1734928238362,-544.38170658,0.00019,2]
[346380834,1734928238373,-1155.62861483,0.00019,2]
[346380835,1734928238412,-3334556.55533713,0.00019,2]
[346380836,1734928238422,-283.57644786,0.00019,2]
[346380837,1734928238431,-3295.38787931,0.00019033,2]
[346380838,1734928238440,-441.45082535,0.00019034,2]
[346380839,1734928238450,-460.12,0.00019041,2]
[346380840,1734928238459,-621.27,0.00019041,2]
[346380841,1734928238468,-437.09,0.00019041,2]
[346380842,1734928238478,-437.09,0.00019041,2]
[346380843,1734928238487,-162.77036397,0.00019061,2]
[346380844,1734928238496,-168.88331867,0.00019061,2]
[346380845,1734928238506,-3295.38787931,0.000191,2]
[346380846,1734928238515,-159.5317511,0.000191,2]
[346380847,1734928238525,-441.45082535,0.00019127,2]
[346380848,1734928238534,-210.0666794,0.00019161,2]
[346380849,1734928238543,-3295.38787931,0.00019166,2]
[346380850,1734928238552,-500.0,0.00019178,2]
[346380851,1734928238562,-1695.75,0.00019178,2]
[346380852,1734928238573,-1642.04,0.00019178,2]
[346380853,1734928238582,-1743.11,0.00019178,2]
[346380854,1734928238591,-2576.49,0.00019178,2]
[346380855,1734928238600,-10885.2,0.00019178,2]
[346380856,1734928238609,-1167.27,0.00019178,2]
[346380857,1734928238621,-500.0,0.00019178,2]
[346380858,1734928238632,-1419.17,0.00019178,2]
[346380859,1734928238642,-967.79,0.00019178,2]
[346380860,1734928238651,-1226.76,0.00019178,2]
[346380861,1734928238660,-1081.76,0.00019178,2]
[346380862,1734928238670,-500.0,0.00019178,2]
[346380863,1734928238679,-1969.81,0.00019178,2]
[346380864,1734928238688,-636.78,0.00019178,2]
[346380865,1734928238699,-9648.37,0.00019178,2]
[346380866,1734928238709,-1939.23,0.00019178,2]
[346380867,1734928238719,-1403.84,0.00019178,2]
[346380868,1734928238728,-1626.94,0.00019178,2]
[346380869,1734928238738,-500.0,0.00019178,2]
[346380870,1734928238747,-500.0,0.00019178,2]
[346380871,1734928238757,-3571.66,0.00019178,2]
[346380872,1734928238766,-3779.63,0.00019178,2]
[346380873,1734928238776,-4640.49,0.00019178,2]
[346380874,1734928238786,-723.23,0.00019178,2]
[346380875,1734928238795,-1315.43,0.00019178,2]
[346380876,1734928238805,-1232.64,0.00019178,2]
[346380877,1734928238815,-2452.33,0.00019178,2]
[346380878,1734928238824,-2217.72,0.00019178,2]
[346380879,1734928238834,-2542.86,0.00019178,2]
[346380880,1734928238843,-500.0,0.00019178,2]
[346380881,1734928238853,-2737.62,0.00019178,2]
[346380882,1734928238863,-500.0,0.00019178,2]
[346380883,1734928238872,-500.0,0.00019178,2]
[346380884,1734928238882,-500.0,0.00019178,2]
[346380885,1734928238891,-1055.05,0.00019178,2]
[346380886,1734928238900,-500.0,0.00019178,2]
[346380887,1734928238909,-500.0,0.00019178,2]
[346380888,1734928238920,-500.0,0.00019178,2]
[346380889,1734928238930,-500.0,0.00019178,2]
[346380890,1734928238939,-1777.32,0.00019178,2]
[346380891,1734928238949,-500.0,0.00019178,2]
[346380892,1734928238958,-503.35874794,0.00019178,2]
[346380893,1734928238967,-500.0,0.00019178,2]
[346380894,1734928238977,-888.73,0.00019178,2]
[346380895,1734928238985,-500.0,0.00019178,2]
[346380896,1734928238995,-7914.96,0.00019178,2]
[346380897,1734928239004,-1118.44,0.00019178,2]
[346380898,1734928239013,-500.0,0.00019178,2]
[346380899,1734928239022,-365.07,0.00019178,2]
[346380900,1734928239032,-300.0,0.00019178,2]
[346380901,1734928239041,-210.06667936,0.00019199,2]
[346380902,1734928239050,-226.85653754,0.000192,2]
[346380903,1734928239059,-19327.94157302,0.000192,2]
[346380904,1734928239069,-4478.04733354,0.000192,2]
[346380905,1734928239078,-441.45082535,0.00019221,2]
[346380906,1734928239087,-3295.38787931,0.00019233,2]
[346380907,1734928239096,-210.06667936,0.00019236,2]
[346380908,1734928239105,-210.06667936,0.00019274,2]
[346380909,1734928239114,-384.86828336,0.00019275,2]
[346380910,1734928239123,-3295.38787931,0.00019299,2]
[346380911,1734928239132,-210.06667936,0.00019312,2]
[346380912,1734928239140,-441.45082535,0.00019314,2]
[346380913,1734928239150,-210.06667936,0.00019349,2]
[346380914,1734928239159,-500.02,0.00019361,2]
[346380915,1734928239168,-556.7,0.00019361,2]
[346380916,1734928239177,-500.0,0.00019361,2]
[346380917,1734928239186,-500.0,0.00019361,2]
[346380918,1734928239195,-500.0,0.00019361,2]
[346380919,1734928239204,-500.0,0.00019361,2]
[346380920,1734928239213,-500.0,0.00019361,2]
[346380921,1734928239222,-500.0,0.00019361,2]
[346380922,1734928239231,-500.0,0.00019361,2]
[346380923,1734928239240,-500.0,0.00019361,2]
[346380924,1734928239249,-500.0,0.00019361,2]
[346380925,1734928239258,-500.0,0.00019361,2]
[346380926,1734928239267,-500.0,0.00019361,2]
[346380927,1734928239276,-766.57,0.00019361,2]
[346380928,1734928239286,-607.81,0.00019361,2]
[346380929,1734928239301,-500.0,0.00019361,2]
[346380930,1734928239317,-500.0,0.00019361,2]
[346380931,1734928239331,-518.51,0.00019361,2]
[346380932,1734928239341,-500.0,0.00019361,2]
[346380933,1734928239355,-500.0,0.00019361,2]
[346380934,1734928239367,-999.0,0.00019361,2]
[346380935,1734928239379,-999.0,0.00019361,2]
[346380936,1734928239393,-999.0,0.00019361,2]
[346380937,1734928239405,-999.0,0.00019361,2]
[346380938,1734928239418,-999.0,0.00019361,2]
[346380939,1734928239430,-999.0,0.00019361,2]
[346380940,1734928239441,-999.0,0.00019361,2]
[346380941,1734928239453,-999.0,0.00019361,2]
[346380942,1734928239465,-999.0,0.00019361,2]
[346380943,1734928239477,-999.0,0.00019361,2]
[346380944,1734928239490,-500.0,0.00019361,2]
[346380945,1734928239502,-999.0,0.00019361,2]
[346380946,1734928239516,-999.0,0.00019361,2]
[346380947,1734928239529,-999.0,0.00019361,2]
[346380948,1734928239541,-999.0,0.00019361,2]
[346380949,1734928239554,-999.0,0.00019361,2]
[346380950,1734928239568,-999.0,0.00019361,2]
[346380951,1734928239580,-999.0,0.00019361,2]
[346380952,1734928239592,-999.0,0.00019361,2]
[346380953,1734928239604,-500.0,0.00019361,2]
[346380954,1734928239617,-1017.36217148,0.00019361,2]
[346380955,1734928239630,-762.99,0.00019361,2]
[346380956,1734928239642,-500.0,0.00019361,2]
[346380957,1734928239653,-500.0,0.00019361,2]
[346380958,1734928239665,-500.0,0.00019361,2]
[346380959,1734928239677,-500.0,0.00019361,2]
[346380960,1734928239691,-500.0,0.00019361,2]
[346380961,1734928239703,-500.0,0.00019361,2]
[346380962,1734928239713,-500.0,0.00019361,2]
[346380963,1734928239723,-500.0,0.00019361,2]
[346380964,1734928239734,-500.0,0.00019361,2]
[346380965,1734928239748,-500.0,0.00019361,2]
[346380966,1734928239760,-500.0,0.00019361,2]
[346380967,1734928239771,-500.0,0.00019361,2]
[346380968,1734928239782,-500.0,0.00019361,2]
[346380969,1734928239792,-500.0,0.00019361,2]
[346380970,1734928239803,-1015.65,0.00019361,2]
[346380971,1734928239814,-500.0,0.00019361,2]
[346380972,1734928239826,-500.0,0.00019361,2]
[346380973,1734928239840,-500.0,0.00019361,2]
[346380974,1734928239851,-520.06067768,0.00019361,2]
[346380975,1734928239863,-787.0,0.00019361,2]
[346380976,1734928239874,-500.0,0.00019361,2]
[346380977,1734928239886,-500.0,0.00019361,2]
[346380978,1734928239897,-502.92753952,0.00019361,2]
[346380979,1734928239908,-642.46,0.00019361,2]
[346380980,1734928239921,-500.0,0.00019361,2]
[346380981,1734928239932,-500.0,0.00019361,2]
[346380982,1734928239943,-500.0,0.00019361,2]
[346380983,1734928239954,-687.25,0.00019361,2]
[346380984,1734928239966,-500.0,0.00019361,2]
[346380985,1734928239977,-500.0,0.00019361,2]
[346380986,1734928239988,-500.0,0.00019361,2]
[346380987,1734928239999,-472.21510062,0.00019361,2]
[346380988,1734928240011,-500.0,0.00019361,2]
[346380989,1734928240022,-1856.902207,0.00019361,2]
[346380990,1734928240033,-787.52,0.00019361,2]
[346380991,1734928240044,-500.0,0.00019361,2]
[346380992,1734928240056,-500.0,0.00019361,2]
[346380993,1734928240067,-150.622576,0.00019361,2]
[346380995,1734928240080,-1507.980803,0.00019361,2]
[346380996,1734928240092,-500.0,0.00019361,2]
[346380997,1734928240102,-500.0,0.00019361,2]
[346380998,1734928240114,-500.0,0.00019361,2]
[346380999,1734928240125,-900.27,0.00019361,2]
[346381000,1734928240135,-500.0,0.00019361,2]
[346381001,1734928240147,-500.0,0.00019361,2]
[346381002,1734928240158,-500.0,0.00019361,2]
[346381003,1734928240169,-700.31,0.00019361,2]
[346381004,1734928240180,-500.0,0.00019361,2]
[346381005,1734928240191,-1061.38,0.00019361,2]
[346381006,1734928240203,-903.02,0.00019361,2]
[346381007,1734928240215,-500.0,0.00019361,2]
[346381008,1734928240226,-500.0,0.00019361,2]
[346381009,1734928240238,-500.0,0.00019361,2]
[346381010,1734928240248,-981.47,0.00019361,2]
[346381011,1734928240260,-500.0,0.00019361,2]
[346381012,1734928240271,-376.56330408,0.00019361,2]
[346381013,1734928240282,-510.50929449,0.00019361,2]
[346381014,1734928240294,-500.0,0.00019361,2]
[346381015,1734928240306,-500.0,0.00019361,2]
[346381016,1734928240317,-916.35,0.00019361,2]
[346381017,1734928240330,-500.0,0.00019361,2]
[346381018,1734928240342,-602.2,0.00019361,2]
[346381019,1734928240353,-500.0,0.00019361,2]
[346381020,1734928240365,-500.0,0.00019361,2]
[346381021,1734928240377,-500.0,0.00019361,2]
[346381022,1734928240388,-500.0,0.00019361,2]
[346381023,1734928240399,-500.0,0.00019361,2]
[346381024,1734928240411,-550.91,0.00019361,2]
[346381025,1734928240423,-223.55268802,0.00019361,2]
[346381026,1734928240435,-500.0,0.00019361,2]
[346381027,1734928240447,-952.38,0.00019361,2]
[346381028,1734928240459,-583.85,0.00019361,2]
[346381029,1734928240470,-562.78150465,0.00019361,2]
[346381030,1734928240482,-500.0,0.00019361,2]
[346381031,1734928240494,-564.52,0.00019361,2]
[346381032,1734928240510,-500.0,0.00019361,2]
[346381033,1734928240523,-500.0,0.00019361,2]
[346381034,1734928240536,-1019.9,0.00019361,2]
[346381035,1734928240549,-500.0,0.00019361,2]
[346381036,1734928240562,-987.39,0.00019361,2]
[346381037,1734928240576,-500.0,0.00019361,2]
[346381038,1734928240588,-510.42113768,0.00019361,2]
[346381039,1734928240601,-500.0,0.00019361,2]
[346381040,1734928240613,-500.0,0.00019361,2]
[346381041,1734928240629,-529.06,0.00019361,2]
[346381042,1734928240641,-500.0,0.00019361,2]
[346381043,1734928240653,-505.41741418,0.00019361,2]
[346381044,1734928240666,-625.27,0.00019361,2]
[346381045,1734928240679,-813.28,0.00019361,2]
[346381046,1734928240694,-932.64,0.00019361,2]
[346381047,1734928240706,-500.0,0.00019361,2]
[346381048,1734928240718,-577.83,0.00019361,2]
[346381049,1734928240730,-439.51934592,0.00019361,2]
[346381050,1734928240742,-500.0,0.00019361,2]
[346381051,1734928240753,-805.65,0.00019361,2]
[346381052,1734928240765,-863.7,0.00019361,2]
[346381053,1734928240777,-751.55,0.00019361,2]
[346381054,1734928240788,-750.07,0.00019361,2]
[346381055,1734928240800,-500.0,0.00019361,2]
[346381056,1734928240812,-500.0,0.00019361,2]
[346381057,1734928240826,-1192.63,0.00019361,2]
[346381058,1734928240838,-1207.2,0.00019361,2]
[346381059,1734928240850,-775.19,0.00019361,2]
[346381060,1734928240861,-817.07,0.00019361,2]
[346381061,1734928240872,-500.0,0.00019361,2]
[346381062,1734928240884,-980.57,0.00019361,2]
[346381063,1734928240895,-500.0,0.00019361,2]
[346381064,1734928240907,-500.0,0.00019361,2]
[346381065,1734928240919,-500.0,0.00019361,2]
[346381066,1734928240930,-500.0,0.00019361,2]
[346381067,1734928240942,-500.0,0.00019361,2]
[346381068,1734928240953,-500.0,0.00019361,2]
[346381069,1734928240964,-585.69,0.00019361,2]
[346381070,1734928240976,-619.92,0.00019361,2]
[346381071,1734928240988,-500.0,0.00019361,2]
[346381072,1734928241000,-5255.48,0.00019361,2]
[346381073,1734928241011,-765.83,0.00019361,2]
[346381074,1734928241023,-500.0,0.00019361,2]
[346381075,1734928241035,-761.56,0.00019361,2]
[346381076,1734928241047,-500.0,0.00019361,2]
[346381077,1734928241059,-1049.04,0.00019361,2]
[346381078,1734928241071,-1132.19,0.00019361,2]
[346381079,1734928241081,-954.11,0.00019361,2]
[346381080,1734928241091,-535.09,0.00019361,2]
[346381081,1734928241100,-500.0,0.00019361,2]
[346381082,1734928241110,-1198.66,0.00019361,2]
[346381083,1734928241119,-500.0,0.00019361,2]
[346381084,1734928241128,-1782.02,0.00019361,2]
[346381085,1734928241137,-826.26,0.00019361,2]
[346381086,1734928241147,-500.0,0.00019361,2]
[346381087,1734928241156,-500.0,0.00019361,2]
[346381088,1734928241165,-529.37,0.00019361,2]
[346381089,1734928241468,-1710.28,0.00019361,2]
[346381090,1734928241487,-1403.37,0.00019361,2]
[346381091,1734928241497,-830.58,0.00019361,2]
[346381092,1734928241507,-500.0,0.00019361,2]
[346381093,1734928241516,-1659.66,0.00019361,2]
[346381094,1734928241525,-154.243379,0.00019361,2]
[346381095,1734928241534,-2119.36,0.00019361,2]
[346381096,1734928241543,-224.888411,0.00019361,2]
[346381097,1734928241552,-622.59,0.00019361,2]
[346381098,1734928241562,-636.54,0.00019361,2]
[346381099,1734928241575,-500.0,0.00019361,2]
[346381100,1734928241584,-500.0,0.00019361,2]
[346381101,1734928241593,-500.0,0.00019361,2]
[346381102,1734928241603,-1855.33,0.00019361,2]
[346381103,1734928241612,-500.0,0.00019361,2]
[346381104,1734928241624,-1191.09,0.00019361,2]
[346381105,1734928241633,-500.0,0.00019361,2]
[346381106,1734928241642,-500.0,0.00019361,2]
[346381107,1734928241652,-1694.59,0.00019361,2]
[346381108,1734928241662,-1072.06,0.00019361,2]
[346381109,1734928241671,-4107.19,0.00019361,2]
[346381110,1734928241681,-6292.35,0.00019361,2]
[346381111,1734928241689,-575.48,0.00019361,2]
[346381112,1734928241699,-501.08864501,0.00019361,2]
[346381113,1734928241709,-597.85,0.00019361,2]
[346381114,1734928241718,-1975.83,0.00019361,2]
[346381115,1734928241728,-584.75,0.00019361,2]
[346381116,1734928241738,-1447.09,0.00019361,2]
[346381117,1734928241747,-500.0,0.00019361,2]
[346381118,1734928241757,-500.0,0.00019361,2]
[346381119,1734928241766,-196.47174094,0.00019361,2]
[346381120,1734928241776,-500.0,0.00019361,2]
[346381121,1734928241785,-173.92908,0.00019361,2]
[346381122,1734928241794,-500.0,0.00019361,2]
[346381123,1734928241803,-1970.35,0.00019361,2]
[346381124,1734928241813,-300.822852,0.00019361,2]
[346381125,1734928241825,-500.0,0.00019361,2]
[346381126,1734928241835,-648.52,0.00019361,2]
[346381127,1734928241844,-561.10649049,0.00019361,2]
[346381128,1734928241854,-500.0,0.00019361,2]
[346381129,1734928241863,-2934.87,0.00019361,2]
[346381130,1734928241873,-498.53474607,0.00019361,2]
[346381131,1734928241883,-1111.31,0.00019361,2]
[346381132,1734928241892,-2322.65,0.00019361,2]
[346381133,1734928241902,-1923.03,0.00019361,2]
[346381134,1734928241911,-3384.7,0.00019361,2]
[346381135,1734928241921,-500.0,0.00019361,2]
[346381136,1734928241932,-500.0,0.00019361,2]
[346381137,1734928241941,-500.0,0.00019361,2]
[346381138,1734928241951,-842.59,0.00019361,2]
[346381139,1734928241960,-6103.6,0.00019361,2]
[346381140,1734928241970,-1803.6,0.00019361,2]
[346381141,1734928241980,-1319.75,0.00019361,2]
[346381142,1734928241989,-728.99,0.00019361,2]
[346381143,1734928241998,-500.0,0.00019361,2]
[346381144,1734928242008,-5421.87,0.00019361,2]
[346381145,1734928242017,-812.97,0.00019361,2]
[346381146,1734928242026,-980.28,0.00019361,2]
[346381147,1734928242035,-4400.82,0.00019361,2]
[346381148,1734928242044,-557.2,0.00019361,2]
[346381149,1734928242053,-500.0,0.00019361,2]
[346381150,1734928242063,-1294.32,0.00019361,2]
[346381151,1734928242073,-4226.61,0.00019361,2]
[346381152,1734928242082,-500.0,0.00019361,2]
[346381153,1734928242091,-3866.18,0.00019361,2]
[346381154,1734928242101,-162.437282,0.00019361,2]
[346381155,1734928242110,-185.963873,0.00019361,2]
[346381156,1734928242119,-2989.47,0.00019361,2]
[346381157,1734928242128,-500.0,0.00019361,2]
[346381158,1734928242137,-500.0,0.00019361,2]
[346381159,1734928242147,-537.47,0.00019361,2]
[346381160,1734928242156,-500.0,0.00019361,2]
[346381161,1734928242165,-894.98,0.00019361,2]
[346381162,1734928242174,-9980.55,0.00019361,2]
[346381163,1734928242183,-932.23,0.00019361,2]
[346381164,1734928242193,-1265.8,0.00019361,2]
[346381165,1734928242202,-500.0,0.00019361,2]
[346381166,1734928242213,-500.0,0.00019361,2]
[346381167,1734928242223,-500.0,0.00019361,2]
[346381168,1734928242232,-500.0,0.00019361,2]
[346381169,1734928242241,-517.10923218,0.00019362,2]
[346381170,1734928242250,-500.0,0.00019362,2]
[346381171,1734928242259,-500.0,0.00019362,2]
[346381172,1734928242268,-500.0,0.00019362,2]
[346381173,1734928242277,-500.0,0.00019362,2]
[346381174,1734928242287,-500.0,0.00019362,2]
[346381175,1734928242296,-519.14628512,0.00019362,2]
[346381176,1734928242305,-500.0,0.00019362,2]
[346381177,1734928242314,-372.42784086,0.00019362,2]
[346381178,1734928242326,-500.0,0.00019362,2]
[346381179,1734928242336,-500.0,0.00019362,2]
[346381180,1734928242345,-532.41628375,0.00019362,2]
[346381181,1734928242354,-500.0,0.00019362,2]
[346381182,1734928242363,-500.0,0.00019362,2]
[346381183,1734928242372,-500.0,0.00019362,2]
[346381184,1734928242382,-500.0,0.00019362,2]
[346381185,1734928242391,-500.0,0.00019362,2]
[346381186,1734928242401,-530.20860096,0.00019362,2]
[346381187,1734928242410,-288.24456695,0.00019362,2]
[346381188,1734928242419,-500.0,0.00019362,2]
[346381189,1734928242428,-369.0873827,0.00019362,2]
[346381190,1734928242437,-500.0,0.00019362,2]
[346381191,1734928242446,-500.0,0.00019362,2]
[346381192,1734928242455,-500.0,0.00019362,2]
[346381193,1734928242464,-500.0,0.00019362,2]
[346381194,1734928242473,-500.0,0.00019362,2]
[346381195,1734928242483,-508.50221214,0.00019362,2]
[346381196,1734928242491,-500.0,0.00019362,2]
[346381197,1734928242501,-500.0,0.00019362,2]
[346381198,1734928242511,-500.0,0.00019362,2]
[346381199,1734928242520,-500.0,0.00019362,2]
[346381200,1734928242529,-638.74421543,0.00019362,2]
[346381201,1734928242539,-578.14774203,0.00019362,2]
[346381202,1734928242548,-500.0,0.00019362,2]
[346381203,1734928242558,-500.0,0.00019362,2]
[346381204,1734928242567,-500.0,0.00019362,2]
[346381205,1734928242579,-500.0,0.00019362,2]
[346381206,1734928242589,-507.63394964,0.00019362,2]
[346381207,1734928242598,-500.0,0.00019362,2]
[346381208,1734928242608,-500.0,0.00019362,2]
[346381209,1734928242619,-500.0,0.00019362,2]
[346381210,1734928242636,-500.0,0.00019362,2]
[346381211,1734928242646,-518.51,0.00019362,2]
[346381212,1734928242655,-500.0,0.00019362,2]
[346381213,1734928242666,-522.53344001,0.00019362,2]
[346381214,1734928242675,-500.0,0.00019362,2]
[346381215,1734928242685,-500.0,0.00019362,2]
[346381216,1734928242695,-500.0,0.00019362,2]
[346381217,1734928242708,-500.0,0.00019362,2]
[346381218,1734928242718,-500.0,0.00019362,2]
[346381219,1734928242727,-663.42,0.00019362,2]
[346381220,1734928242738,-500.0,0.00019362,2]
[346381221,1734928242748,-500.0,0.00019362,2]
[346381222,1734928242758,-200.75144042,0.00019362,2]
[346381223,1734928242768,-500.0,0.00019362,2]
[346381224,1734928242778,-500.0,0.00019362,2]
[346381225,1734928242792,-641.00480714,0.00019362,2]
[346381226,1734928242809,-500.0,0.00019362,2]
[346381227,1734928242819,-500.0,0.00019362,2]
[346381228,1734928242828,-1237.61,0.00019362,2]
[346381229,1734928242838,-500.0,0.00019362,2]
[346381230,1734928242847,-2000.0,0.00019362,15]
[346381231,1734928242857,-500.0,0.00019362,2]
[346381232,1734928242867,-515.13362394,0.00019362,2]
[346381233,1734928242876,-500.0,0.00019362,2]
[346381234,1734928242886,-500.0,0.00019362,2]
[346381235,1734928242895,-500.0,0.00019362,2]
[346381236,1734928242906,-500.0,0.00019362,2]
[346381237,1734928242915,-500.0,0.00019362,2]
[346381238,1734928242925,-500.0,0.00019362,2]
[346381239,1734928242935,-500.0,0.00019362,2]
[346381240,1734928242945,-500.0,0.00019362,2]
[346381241,1734928242954,-500.0,0.00019362,2]
[346381242,1734928242964,-510.86124231,0.00019362,2]
[346381243,1734928242979,-500.0,0.00019362,2]
[346381244,1734928242998,-500.0,0.00019362,2]
[346381245,1734928243012,-500.0,0.00019362,2]
[346381246,1734928243022,-368.39552558,0.00019362,2]
[346381247,1734928243032,-500.0,0.00019362,2]
[346381248,1734928243041,-500.0,0.00019362,2]
[346381249,1734928243052,-500.0,0.00019362,2]
[346381250,1734928243061,-705.25,0.00019362,2]
[346381251,1734928243071,-500.0,0.00019362,2]
[346381252,1734928243081,-773.75,0.00019362,2]
[346381253,1734928243091,-1334.68,0.00019362,2]
[346381254,1734928243101,-500.0,0.00019362,2]
[346381255,1734928243111,-2164.28,0.00019362,2]
[346381256,1734928243120,-500.0,0.00019362,2]
[346381257,1734928243130,-500.0,0.00019362,2]
[346381258,1734928243140,-500.0,0.00019362,2]
[346381259,1734928243150,-1567.03,0.00019362,2]
[346381260,1734928243159,-1254.1,0.00019362,2]
[346381261,1734928243168,-500.0,0.00019362,2]
[346381262,1734928243178,-785.34,0.00019362,2]
[346381263,1734928243188,-500.0,0.00019362,2]
[346381264,1734928243197,-1729.06,0.00019362,2]
[346381265,1734928243207,-500.0,0.00019362,2]
[346381266,1734928243217,-1616.91,0.00019362,2]
[346381267,1734928243227,-500.0,0.00019362,2]
[346381269,1734928243237,-2571.04,0.00019362,2]
[346381271,1734928243247,-16585.36,0.00019362,2]
[346381273,1734928243257,-500.0,0.00019362,2]
[346381274,1734928243267,-262.37289936,0.00019362,2]
[346381277,1734928243276,-2107.96,0.00019362,2]
[346381279,1734928243286,-500.0,0.00019362,2]
[346381281,1734928243295,-500.0,0.00019362,2]
[346381283,1734928243304,-500.0,0.00019362,2]
[346381285,1734928243314,-506.11840947,0.00019362,2]
[346381287,1734928243326,-979.81,0.00019362,2]
[346381289,1734928243335,-500.0,0.00019362,2]
[346381291,1734928243345,-563.73214078,0.00019362,2]
[346381293,1734928243355,-500.0,0.00019362,2]
[346381295,1734928243365,-500.0,0.00019362,2]
[346381297,1734928243374,-500.0,0.00019362,2]
[346381299,1734928243384,-500.0,0.00019362,2]
[346381301,1734928243394,-2452.59,0.00019362,2]
[346381303,1734928243403,-500.0,0.00019362,2]
[346381304,1734928243413,-15587.54,0.00019362,2]
[346381305,1734928243423,-500.0,0.00019362,2]
[346381306,1734928243433,-500.0,0.00019362,2]
[346381307,1734928243442,-500.0,0.00019362,2]
[346381308,1734928243452,-500.0,0.00019362,2]
[346381309,1734928243462,-652.85,0.00019362,2]
[346381310,1734928243472,-500.0,0.00019362,2]
[346381311,1734928243482,-500.0,0.00019362,2]
[346381312,1734928243492,-1922.73,0.00019362,2]
[346381313,1734928243502,-500.0,0.00019362,2]
[346381314,1734928243511,-500.0,0.00019362,2]
[346381315,1734928243521,-500.0,0.00019362,2]
[346381316,1734928243530,-1255.53,0.00019362,2]
[346381317,1734928243540,-500.0,0.00019362,2]
[346381318,1734928243550,-3723.65,0.00019362,2]
[346381319,1734928243560,-500.0,0.00019362,2]
[346381320,1734928243572,-500.0,0.00019362,2]
[346381321,1734928243582,-500.0,0.00019362,2]
[346381322,1734928243594,-559.98,0.00019362,2]
[346381323,1734928243605,-500.0,0.00019362,2]
[346381324,1734928243623,-1391.16,0.00019362,2]
[346381325,1734928243643,-500.0,0.00019362,2]
[346381326,1734928243662,-500.0,0.00019362,2]
[346381327,1734928243672,-500.0,0.00019362,2]
[346381328,1734928243681,-1246.55,0.00019362,2]
[346381329,1734928243691,-500.0,0.00019362,2]
[346381330,1734928243701,-3295.38787931,0.00019366,2]
[346381331,1734928243710,-210.06667936,0.00019387,2]
[346381332,1734928243720,-13426.10166863,0.00019398,2]
[346381333,1734928243729,-1015.0,0.000194,2]
[346381335,1734928243738,-101703.19847283,0.000194,5]
[346381337,1734928243747,-441.45082535,0.00019407,2]
[346381338,1734928243757,-210.06667936,0.00019425,2]
[346381339,1734928243766,-3295.38787931,0.00019432,2]
[346381340,1734928243775,-500.0,0.00019442,2]
[346381341,1734928243785,-645.02476872,0.00019443,2]
[346381342,1734928243794,-500.0,0.00019443,2]
[346381343,1734928243804,-2000.0,0.00019443,2]
[346381344,1734928243813,-500.0,0.00019443,2]
[346381345,1734928243824,-500.0,0.00019443,2]
[346381346,1734928243833,-200.0,0.00019443,2]
[346381347,1734928243843,-645.02476873,0.00019444,2]
[346381348,1734928243853,-645.02476873,0.00019445,2]
[346381349,1734928243863,-42571.63473564,0.00019446,2]
[346381350,1734928243872,-5164.83021715,0.00019448,2]
[346381351,1734928243881,-42571.63473564,0.0001945,2]
[346381352,1734928243891,-42571.63473564,0.0001945,2]